bitfinex/quotes_ETHUSD_20241030
["timestamp","ask_amount","ask_price","bid_price","bid_amount"]
[1730250830936,0.05805266,2606.8,2606.7,4.88969616]
[1730250831122,3.83553,2607.2,2606.7,4.88969616]
[1730250831336,0.05805266,2607.1,2606.7,4.88969616]
[1730250831770,0.05805266,2607.1,2607.0,3.83582]
[1730250832067,3.83494,2607.6,2607.0,3.83582]
[1730250832251,3.83494,2607.6,2607.1,3.83567]
[1730250832456,0.05800896,2607.5,2607.1,3.83567]
[1730250832652,0.05800896,2607.5,2607.0,3.83571]
[1730250832870,0.05800896,2607.5,2607.0,4.12241572]
[1730250833092,3.89311896,2607.5,2607.0,3.83571]
[1730250833399,0.05800896,2607.5,2607.0,3.83571]
[1730250833557,0.05800896,2607.5,2607.1,0.07670526]
[1730250833763,3.89318896,2607.5,2606.9,7.95851125]
[1730250834005,3.83548,2607.3,2607.0,0.28675125]
[1730250834305,3.83548,2607.3,2606.8,4.12288266]
[1730250834487,0.0580352,2607.2,2606.8,4.12288266]
[1730250834806,3.83548,2607.3,2606.8,4.12288266]
[1730250835008,0.0580352,2607.1,2606.8,4.12288266]
[1730250835203,3.83548,2607.3,2606.8,4.12288266]
[1730250835715,3.83568,2607.1,2606.8,0.28677266]
[1730250835900,4.62648,2607.1,2606.8,0.28677266]
[1730250836074,0.0580199,2607.0,2606.7,0.28677266]
[1730250836274,0.0580199,2607.0,2606.8,0.28677266]
[1730250837799,3.8938799,2607.0,2606.5,0.28677266]
[1730250838106,3.8938799,2607.0,2606.4,4.12346266]
[1730250838305,3.83599,2606.9,2606.4,4.12346266]
[1730250838823,0.05787782,2606.8,2606.5,3.83644]
[1730250839020,3.83586,2607.0,2606.5,4.12321266]
[1730250839195,0.05785378,2606.7,2606.6,3.8364]
[1730250839518,3.83583,2607.0,2606.6,3.8364]
[1730250839720,0.05785378,2606.7,2606.6,3.8364]
[1730250839922,4.62657,2607.1,2606.6,4.12324001]
[1730250840326,0.05782971,2607.0,2606.6,3.8364]
[1730250840479,0.05782971,2607.0,2606.7,4.59251]
[1730250840820,4.63839,2607.3,2606.8,3.83604]
[1730250841020,0.05782971,2606.9,2606.8,3.83604]
[1730250841325,4.63839,2607.3,2606.8,3.83604]
[1730250841913,4.63839,2607.3,2606.7,4.59251]
[1730250841914,3.89337285,2607.2,2606.7,4.59251]
[1730250842227,3.83568,2607.1,2606.7,4.59251]
[1730250842523,3.83553,2607.2,2606.7,4.59251]
[1730250842823,0.05783696,2607.1,2606.7,4.59248]
[1730250843391,3.89353696,2607.1,2606.7,0.7563]
[1730250843787,4.74673366,2607.1,2606.5,3.83646]
[1730250843988,3.83594,2607.0,2606.5,3.83646]
[1730250844223,3.89378789,2607.0,2606.5,3.83646]
[1730250844507,0.05784789,2607.0,2606.6,3.8364]
[1730250844710,0.05784789,2607.0,2606.7,3.83625]
[1730250845025,0.01,2607.9,2607.0,0.7563]
[1730250845026,0.6001387,2607.4,2607.0,0.7563]
[1730250845209,3.8346,2607.9,2607.3,3.83531]
[1730250845210,4.6376,2607.9,2607.3,3.83531]
[1730250845411,0.803,2607.9,2607.1,3.44247118]
[1730250845615,4.63752,2607.9,2607.4,3.83513]
[1730250846330,3.83452,2607.9,2607.5,4.66806384]
[1730250847128,4.43437205,2608.1,2607.5,4.66806384]
[1730250847129,3.83432,2608.1,2607.5,0.7563]
[1730250847331,3.83432,2608.1,2607.5,4.59126]
[1730250847485,3.83432,2608.1,2607.6,0.07668999]
[1730250847686,3.83432,2608.1,2607.6,3.83487]
[1730250850215,4.63706,2608.2,2607.7,3.83478]
[1730250850615,4.63706,2608.2,2607.6,0.919318]
[1730250850616,3.83428,2608.1,2607.6,4.754258]
[1730250851321,4.63706,2608.2,2607.6,4.754258]
[1730250851322,8.4712,2608.2,2607.6,4.754258]
[1730250851651,3.83414,2608.2,2607.6,4.754258]
[1730250852445,7.6677,2608.4,2607.6,4.754158]
[1730250852644,3.83392,2608.3,2607.8,3.83456]
[1730250852962,0.803,2608.5,2608.1,3.83408]
[1730250853111,3.83332,2608.7,2608.1,4.59038]
[1730250853311,3.83332,2608.7,2608.1,8.4245]
[1730250853516,3.83332,2608.7,2608.1,4.59038]
[1730250853731,3.83345,2608.7,2608.2,0.07667146]
[1730250854018,3.83345,2608.7,2608.1,0.7563]
[1730250854019,3.83362,2608.5,2608.1,0.7563]
[1730250854461,0.05823903,2608.4,2608.1,0.7563]
[1730250854753,0.05823903,2608.4,2608.1,4.59048]
[1730250854927,3.83358,2608.6,2608.1,0.7563]
[1730250855318,0.05823903,2608.5,2608.1,0.7563]
[1730250855654,0.05823903,2608.5,2608.1,4.59049]
[1730250855863,0.05823903,2608.5,2608.1,5.432978]
[1730250856476,0.05823903,2608.5,2608.1,5.432908]
[1730250857147,0.05823903,2608.5,2608.1,9.267028]
[1730250857353,0.05823903,2608.5,2608.2,3.91065216]
[1730250857760,0.05831113,2608.4,2608.3,0.07666837]
[1730250857963,0.05831113,2608.4,2608.2,3.68398]
[1730250858168,0.05831113,2608.4,2608.3,3.8339]
[1730250858554,3.83326,2608.8,2608.3,3.8339]
[1730250858876,8.48808012,2613.8,2608.2,0.9116888]
[1730250858877,1.40294446,2609.2,2608.6,3.44247118]
[1730250859076,3.83261,2609.2,2608.6,3.44247118]
[1730250859372,3.83261,2609.2,2608.7,3.8333]
[1730250860033,3.83282,2609.1,2608.5,3.83352]
[1730250860364,3.83282,2609.1,2608.6,3.91011745]
[1730250860545,7.66506,2609.3,2608.7,3.83325]
[1730250860743,3.83252,2609.3,2608.7,3.83325]
[1730250860929,3.83252,2609.3,2608.7,3.83332]
[1730250861130,3.83252,2609.3,2608.8,3.90982245]
[1730250861853,1.186252,2609.2,2608.8,0.07665245]
[1730250862045,3.83327,2608.8,2608.2,3.83402]
[1730250862425,7.63563,2609.2,2608.1,0.7563]
[1730250862426,0.803,2609.2,2608.1,0.7563]
[1730250862629,3.83371,2608.5,2608.1,0.7563]
[1730250863232,3.83355,2608.6,2608.1,0.7563]
[1730250863427,7.66711,2608.6,2608.1,0.7563]
[1730250863653,3.8337,2608.5,2608.1,0.7563]
[1730250863827,3.8338,2608.4,2607.8,4.59082]
[1730250864026,3.8338,2608.4,2607.8,5.4492537]
[1730250864375,7.66715,2608.6,2608.0,3.83427]
[1730250864532,7.66711,2608.6,2608.0,3.83426]
[1730250864729,3.83363,2608.5,2608.0,3.83426]
[1730250865355,3.83355,2608.6,2607.8,5.4492737]
[1730250865658,3.83373,2608.5,2607.9,3.8345]
[1730250866286,3.83347,2608.6,2608.0,3.83424]
[1730250866498,4.297125,2608.6,2608.0,3.83424]
[1730250866683,0.803,2608.7,2607.8,1.6147337]
[1730250866856,3.83325,2608.8,2608.2,7.66793]
[1730250867061,7.63598,2609.0,2608.0,0.7563]
[1730250867294,7.63598,2609.0,2608.4,3.83374]
[1730250867295,4.63597,2609.0,2608.4,3.83374]
[1730250867481,3.8331,2608.9,2608.5,0.07666238]
[1730250867685,3.8331,2608.9,2608.4,3.83374]
[1730250867854,3.83318,2608.8,2608.2,3.83397]
[1730250868050,0.803,2609.0,2608.0,0.7563]
[1730250868252,3.83372,2608.5,2608.0,4.59065]
[1730250868896,7.66745,2608.5,2608.0,4.59065]
[1730250869056,3.83369,2608.5,2608.0,4.59065]
[1730250869969,7.66738,2608.5,2608.0,4.59065]
[1730250870157,3.83369,2608.5,2608.0,4.59065]
[1730250870588,3.83379,2608.4,2608.0,0.7563]
[1730250870885,3.83404,2608.3,2607.8,3.83464]
[1730250871091,3.83404,2608.3,2607.7,0.7555]
[1730250871291,3.83404,2608.3,2607.8,3.83452]
[1730250871994,0.383369,2608.4,2607.4,0.7555]
[1730250872156,3.83465,2607.8,2607.4,0.7555]
[1730250873008,3.83479,2607.7,2607.4,0.7555]
[1730250873184,3.83486,2607.7,2607.0,4.59131]
[1730250873395,3.83486,2607.7,2607.1,0.07670171]
[1730250873565,0.05828055,2607.6,2607.2,3.8354]
[1730250873902,3.83468,2607.8,2607.2,4.29454]
[1730250874061,0.05823468,2607.5,2607.2,4.29454]
[1730250874262,3.83464,2607.9,2607.2,4.29454]
[1730250874263,3.8348,2607.7,2607.2,4.29454]
[1730250874461,0.05823468,2607.4,2607.2,4.29454]
[1730250874686,3.83533,2607.4,2607.0,0.7555]
[1730250874903,0.05820845,2607.3,2607.0,0.7555]
[1730250875062,3.89366845,2607.3,2607.0,0.7555]
[1730250875793,3.83556,2607.2,2606.7,0.7555]
[1730250875965,3.89373786,2607.2,2606.7,4.59168]
[1730250877113,3.89373786,2607.2,2606.8,3.83612]
[1730250877114,0.05817786,2607.2,2606.8,3.83612]
[1730250877275,0.05817786,2607.2,2606.9,3.83595]
[1730250877461,3.83504,2607.6,2606.9,3.83588]
[1730250877662,0.0581014,2607.1,2607.0,3.83582]
[1730250877866,3.83504,2607.6,2607.1,4.59114]
[1730250878262,3.83504,2607.6,2607.1,5.433842]
[1730250878478,3.83502,2607.6,2607.1,5.433842]
[1730250879964,3.83502,2607.6,2607.1,1.598202]
[1730250880160,3.83525,2607.4,2607.1,0.7555]
[1730250880478,3.83525,2607.4,2606.9,4.59137]
[1730250880479,7.67062,2607.4,2606.9,4.59137]
[1730250880970,3.83525,2607.4,2606.9,4.59137]
[1730250881479,3.83597,2606.9,2606.6,0.7555]
[1730250881865,7.67204,2606.9,2606.6,0.7555]
[1730250882104,3.83527,2607.4,2606.8,3.83609]
[1730250882311,3.83527,2607.4,2606.7,4.40299616]
[1730250882312,3.83563,2607.2,2606.7,4.40299616]
[1730250882465,3.83563,2607.2,2606.7,8.23917616]
[1730250882666,3.83563,2607.2,2606.7,3.83618]
[1730250882867,3.83509,2607.5,2606.8,3.8361]
[1730250883088,3.83523,2607.4,2606.6,5.051032]
[1730250883305,4.142762,2607.5,2606.6,1.214712]
[1730250883467,4.142762,2607.5,2606.6,0.7555]
[1730250883468,3.83591,2607.0,2606.6,0.7555]
[1730250883902,7.67126,2607.2,2606.6,4.59181]
[1730250884205,3.83523,2607.4,2606.6,0.7555]
[1730250884505,3.83563,2607.2,2606.7,3.83626]
[1730250884667,3.83476,2607.8,2607.2,3.83543]
[1730250885004,7.6689,2608.0,2607.5,0.7811]
[1730250885231,3.83445,2608.0,2607.5,0.7811]
[1730250885368,4.677811,2608.0,2607.5,0.7811]
[1730250885568,8.512251,2608.0,2607.5,0.7811]
[1730250885782,3.83453,2607.9,2607.5,0.7811]
[1730250886169,3.83465,2607.8,2607.5,0.7811]
[1730250886383,4.3024511,2607.8,2607.5,0.7811]
[1730250886582,3.83465,2607.8,2607.5,0.7811]
[1730250887305,7.66941,2607.8,2607.5,0.7811]
[1730250887514,3.83465,2607.8,2607.5,0.7811]
[1730250888300,3.83465,2607.8,2607.3,3.83525]
[1730250888301,3.83497,2607.6,2607.2,0.7811]
[1730250888698,0.05616371,2607.5,2607.2,0.7811]
[1730250888901,0.05616371,2607.5,2607.2,1.242767]
[1730250890039,0.05616371,2607.5,2607.2,5.078287]
[1730250891499,0.05616371,2607.5,2607.4,3.83523]
[1730250892010,3.8339,2608.4,2607.9,3.83449]
[1730250892011,3.83389,2608.4,2607.9,3.83449]
[1730250892226,3.83389,2608.4,2608.0,0.07667574]
[1730250892603,3.83389,2608.4,2607.9,4.61559]
[1730250892604,7.66774,2608.4,2607.9,4.61559]
[1730250892921,3.83385,2608.4,2607.9,4.61559]
[1730250893237,3.83385,2608.4,2607.9,0.7811]
[1730250893414,7.66774,2608.4,2607.9,0.7811]
[1730250893941,3.83391,2608.3,2607.9,0.7811]
[1730250894301,3.83406,2608.2,2607.6,0.7811]
[1730250894602,3.83435,2608.1,2607.6,0.7811]
[1730250895033,3.83435,2608.1,2607.6,4.61597]
[1730250897128,3.83435,2608.1,2607.6,0.7811]
[1730250897631,3.83442,2608.0,2607.6,0.7811]
[1730250897830,3.83428,2608.1,2607.6,0.7811]
[1730250898710,3.83467,2607.8,2607.6,0.7811]
[1730250898917,3.83453,2607.9,2607.6,0.7811]
[1730250899249,3.83453,2607.9,2607.3,4.61637]
[1730250899250,3.83469,2607.8,2607.3,4.61637]
[1730250899452,3.83453,2607.9,2607.4,3.8352]
[1730250899630,3.83453,2607.9,2607.5,0.07668939]
[1730250899816,3.83426,2608.1,2607.5,0.07668939]
[1730250900017,3.83426,2608.1,2607.5,3.835]
[1730250900360,3.83426,2608.1,2607.8,0.7564]
[1730250900570,3.83343,2608.7,2608.0,3.83427]
[1730250900722,3.83343,2608.7,2607.5,0.96869527]
[1730250900723,3.83318,2608.8,2608.2,3.83397]
[1730250900928,3.83318,2608.8,2608.1,4.19930987]
[1730250900929,4.58799,2609.2,2608.5,3.83361]
[1730250901122,3.83295,2609.0,2608.5,3.83361]
[1730250901376,5.046789,2609.2,2608.6,0.07666003]
[1730250901377,4.58799,2609.2,2608.6,0.07666003]
[1730250901525,8.42068,2609.2,2608.6,4.58979]
[1730250901869,3.83303,2608.9,2608.6,0.7564]
[1730250902378,3.83325,2608.8,2608.3,0.7564]
[1730250902663,3.83334,2608.7,2608.3,0.7564]
[1730250902875,3.83334,2608.7,2608.3,1.215435]
[1730250903175,3.83325,2608.8,2608.3,1.215435]
[1730250903476,3.83311,2608.9,2608.3,3.8338]
[1730250903633,0.05473042,2608.7,2608.3,3.8338]
[1730250903832,3.83311,2608.9,2608.4,3.83376]
[1730250904141,3.83416,2608.2,2607.6,0.7564]
[1730250904343,3.83459,2607.9,2607.6,0.7564]
[1730250904557,0.7553,2608.1,2607.3,0.7564]
[1730250904558,3.83487,2607.7,2607.3,0.7564]
[1730250904760,3.83489,2607.7,2607.3,0.7564]
[1730250904961,4.58958,2608.1,2607.3,0.7564]
[1730250905160,4.58958,2608.1,2607.0,0.7564]
[1730250905161,3.83509,2607.5,2607.0,0.7564]
[1730250905429,0.458958,2608.0,2607.0,0.7564]
[1730250905430,0.05466056,2607.4,2607.1,3.83566]
[1730250905646,0.05466056,2607.4,2607.0,0.7564]
[1730250906070,3.83509,2607.5,2607.1,3.83567]
[1730250906275,3.83501,2607.6,2606.7,0.7564]
[1730250906276,3.83576,2607.1,2606.7,0.7564]
[1730250906426,3.83576,2607.1,2606.4,3.83663]
[1730250906648,0.7553,2607.3,2606.4,0.7564]
[1730250906649,3.83637,2606.7,2606.4,0.7564]
[1730250906961,0.05431697,2606.6,2606.2,0.7564]
[1730250907164,3.83685,2606.3,2606.2,0.7564]
[1730250907349,3.83685,2606.3,2605.8,0.7564]
[1730250907550,3.89116041,2606.3,2605.8,5.15691189]
[1730250907774,3.89116041,2606.3,2605.9,3.83741]
[1730250907775,0.05431041,2606.3,2605.9,3.83741]
[1730250907972,3.83667,2606.5,2605.9,3.83741]
[1730250908292,0.05431041,2606.4,2605.9,3.83741]
[1730250908878,3.89103041,2606.4,2605.9,3.83741]
[1730250909088,0.05431041,2606.4,2605.9,4.73685219]
[1730250909389,3.89111041,2606.4,2605.9,4.73685219]
[1730250910266,3.89103041,2606.4,2605.9,4.73685219]
[1730250910690,3.89103041,2606.4,2605.9,8.57421219]
[1730250910899,3.89103041,2606.4,2605.9,4.73680219]
[1730250911081,3.89103041,2606.4,2605.8,1.31936189]
[1730250911082,0.05431041,2606.4,2605.8,0.7564]
[1730250911271,3.83749,2605.9,2605.4,0.7564]
[1730250911466,3.83752,2605.9,2605.1,4.59492]
[1730250911669,0.80943553,2606.3,2605.2,0.07675218]
[1730250911670,0.7553,2606.1,2605.2,0.07675218]
[1730250911896,7.72924482,2605.8,2605.1,8.92153237]
[1730250912093,3.8378,2605.7,2605.1,5.08299237]
[1730250912302,3.83831,2605.4,2604.8,0.7564]
[1730250912507,4.59326,2605.6,2605.0,3.83876]
[1730250912713,0.05371358,2605.3,2605.0,3.83876]
[1730250912906,3.83828,2605.4,2604.8,4.59536]
[1730250913100,0.05371358,2605.2,2604.8,4.59536]
[1730250913319,3.83842,2605.3,2604.6,3.83927]
[1730250913488,0.05371358,2605.1,2604.6,3.83927]
[1730250913668,3.83849,2605.2,2604.6,3.83927]
[1730250913873,0.05360421,2605.0,2604.6,3.83927]
[1730250914070,3.83849,2605.2,2604.6,3.83927]
[1730250914292,3.83849,2605.2,2604.5,0.7564]
[1730250914293,0.05348826,2604.9,2604.5,0.7564]
[1730250914595,0.05348826,2604.8,2604.5,0.7564]
[1730250914803,3.83877,2605.0,2604.4,3.83953]
[1730250914985,0.0534248,2604.9,2604.4,3.83953]
[1730250916129,0.7553,2605.1,2604.5,3.83949]
[1730250916424,4.59401,2605.1,2604.4,3.83953]
[1730250916724,0.05342042,2605.0,2604.5,3.83942]
[1730250916932,0.05342042,2605.0,2604.6,0.07677942]
[1730250917227,0.8301,2605.4,2604.9,3.83891]
[1730250917426,3.83791,2605.6,2605.0,3.83873]
[1730250917592,3.83804,2605.5,2604.9,3.83891]
[1730250917788,3.83804,2605.5,2604.9,3.91568028]
[1730250917989,3.83804,2605.5,2604.9,3.83891]
[1730250918193,3.8387,2605.1,2604.5,0.8037]
[1730250918497,3.83904,2604.9,2604.2,8.4834]
[1730250918713,0.05264471,2605.0,2604.2,4.64352]
[1730250918886,3.83894,2604.9,2604.2,5.54811244]
[1730250919089,3.89156188,2604.9,2604.2,4.64362]
[1730250919293,3.89156188,2604.9,2604.3,3.83966]
[1730250919534,3.89156188,2604.9,2604.4,3.83964]
[1730250920031,0.05261188,2604.9,2604.5,0.07678587]
[1730250920221,0.05261188,2604.9,2604.8,3.83906]
[1730250920415,3.83782,2605.7,2605.0,3.83867]
[1730250920618,3.88877505,2605.6,2605.0,3.83867]
[1730250920950,0.05079505,2605.6,2605.0,3.83866]
[1730250921102,0.05079505,2605.6,2605.0,3.83871]
[1730250921296,0.90645156,2605.6,2605.0,3.83871]
[1730250921496,0.90645156,2605.6,2605.0,7.67737]
[1730250922063,0.90645156,2605.6,2605.0,3.83866]
[1730250922257,0.90645156,2605.6,2605.1,3.83859]
[1730250923135,3.83811,2605.5,2605.0,3.83866]
[1730250923334,4.69634816,2605.5,2605.0,3.83866]
[1730250923543,0.05085416,2605.4,2605.0,3.83866]
[1730250924355,0.8301,2605.8,2605.2,4.64214]
[1730250924560,0.05085416,2605.3,2605.2,4.64214]
[1730250924827,0.8301,2605.8,2605.3,7.67647]
[1730250925028,6.83723,2606.1,2605.4,3.83806]
[1730250925029,8.50461,2606.1,2605.4,3.83806]
[1730250925228,0.05085416,2605.7,2605.4,3.83806]
[1730250925441,3.83744,2605.9,2605.3,3.83823]
[1730250925659,0.05087167,2605.6,2605.3,3.83823]
[1730250925867,3.83744,2605.9,2605.3,3.83823]
[1730250926159,0.0509045,2605.5,2605.3,3.83823]
[1730250926327,3.83744,2605.9,2605.3,3.83823]
[1730250926528,0.0509045,2605.4,2605.3,3.83823]
[1730250926732,3.83744,2605.9,2605.3,3.83823]
[1730250926950,0.0509045,2605.4,2605.3,3.83823]
[1730250927146,4.66732,2606.1,2605.4,3.83812]
[1730250927752,3.83745,2605.9,2605.4,3.83812]
[1730250928476,3.83745,2605.9,2605.2,4.64208]
[1730250928477,0.8301,2605.4,2604.3,0.8037]
[1730250928674,3.83856,2605.2,2604.6,3.83926]
[1730250928874,7.67712,2605.2,2604.6,3.83926]
[1730250929293,3.83871,2605.1,2604.4,3.83952]
[1730250929503,4.689282,2605.2,2604.4,3.83965]
[1730250929783,4.689282,2605.2,2604.7,3.8392]
[1730250929984,3.83856,2605.2,2604.7,3.83913]
[1730250931896,3.83869,2605.1,2604.5,3.83943]
[1730250932265,3.83878,2605.0,2604.5,3.83943]
[1730250932699,0.7821,2604.9,2604.4,3.83958]
[1730250932865,0.7821,2604.9,2604.5,3.83949]
[1730250933065,0.7821,2604.9,2604.3,4.6434]
[1730250933273,0.7821,2604.9,2604.5,3.83942]
[1730250933798,0.05079944,2604.8,2604.5,3.83942]
[1730250934152,0.05079944,2604.8,2604.4,0.46434]
[1730250934356,0.05079944,2604.8,2604.4,4.30391]
[1730250934576,0.05079944,2604.8,2604.5,3.83938]
[1730250934776,0.05079944,2604.8,2604.5,4.350122]
[1730250934983,4.62059,2605.2,2604.6,3.83925]
[1730250935200,0.05078193,2604.7,2604.4,3.83953]
[1730250935355,3.8387,2605.1,2604.5,3.83949]
[1730250935693,3.8387,2605.1,2604.6,3.8393]
[1730250935997,0.05078193,2605.0,2604.5,3.83949]
[1730250936158,3.88959193,2605.0,2604.5,3.83942]
[1730250936491,0.05078193,2605.0,2604.6,3.83935]
[1730250938609,0.05078193,2605.0,2604.4,3.83961]
[1730250938816,3.83874,2605.1,2604.4,3.83961]
[1730250939125,0.05013317,2605.0,2604.4,3.83961]
[1730250939283,3.83893,2604.9,2604.4,7.67918]
[1730250939485,3.8890566,2604.9,2604.4,3.83957]
[1730250939919,3.83907,2604.8,2604.4,3.83957]
[1730250940136,0.7821,2605.0,2604.1,0.7859]
[1730250940286,4.6217,2604.5,2604.0,3.84014]
[1730250940629,0.7821,2604.5,2604.0,3.84014]
[1730250940926,0.05010251,2604.4,2604.2,3.83991]
[1730250941083,0.05010251,2604.4,2603.8,0.7859]
[1730250941283,0.05010251,2604.4,2604.0,3.8401]
[1730250941631,0.05010251,2604.4,2604.1,3.84009]
[1730250941785,0.05010251,2604.4,2604.0,3.8401]
[1730250941984,0.05010251,2604.4,2604.1,3.83999]
[1730250942382,0.7821,2604.5,2604.1,3.83999]
[1730250942781,0.05002806,2604.4,2604.1,3.83999]
[1730250943924,0.05002806,2604.4,2604.0,3.8401]
[1730250944098,0.05002806,2604.4,2604.2,3.83982]
[1730250944310,3.83929,2604.7,2604.2,3.83982]
[1730250944517,3.83929,2604.7,2604.3,3.8398]
[1730250945154,4.59928,2605.2,2604.5,3.8395]
[1730250945305,4.59928,2605.2,2604.5,4.69386221]
[1730250945642,0.7608,2605.2,2604.8,3.83903]
[1730250946046,0.7608,2605.2,2604.7,3.83906]
[1730250946247,3.83877,2605.0,2604.5,3.83942]
[1730250946448,4.5995,2605.1,2604.6,3.83935]
[1730250946619,0.7608,2605.1,2604.7,3.83909]
[1730250946939,0.7608,2605.1,2604.5,3.83941]
[1730250947105,3.83879,2605.0,2604.5,7.67883]
[1730250947535,0.7608,2605.1,2604.5,3.83941]
[1730250947734,0.7608,2605.1,2604.6,3.83936]
[1730250948238,0.7608,2605.1,2604.3,3.8397]
[1730250948442,3.83891,2605.0,2604.5,3.83948]
[1730250948632,3.88890741,2605.0,2604.5,3.83948]
[1730250948945,0.04999741,2605.0,2604.8,3.83906]
[1730250949251,0.08649874,2606.1,2605.4,3.83817]
[1730250949252,4.59837,2605.9,2605.4,3.83817]
[1730250949402,4.59837,2605.9,2605.3,0.07675886]
[1730250949609,3.83766,2605.8,2605.2,7.67672]
[1730250949840,3.83766,2605.8,2605.3,3.8383]
[1730250950004,0.7608,2605.9,2605.4,3.83817]
[1730250950339,0.7608,2605.9,2605.2,3.83838]
[1730250950340,4.59836,2605.9,2605.2,3.83838]
[1730250950515,3.83775,2605.7,2605.2,3.83838]
[1730250950910,3.8379,2605.6,2605.0,8.4649]
[1730250951111,0.7608,2605.5,2605.1,3.83858]
[1730250951932,0.7608,2605.5,2604.9,0.80262257]
[1730250952118,0.7608,2605.0,2604.8,1.27935992]
[1730250952320,0.7608,2605.0,2604.8,0.28582651]
[1730250952646,0.7608,2605.0,2604.6,4.12510651]
[1730250952949,4.59957,2605.0,2604.6,0.28582651]
[1730250953247,3.83892,2604.9,2604.5,0.28633071]
[1730250953618,3.83892,2604.9,2604.4,4.83395838]
[1730250953944,5.443438,2605.0,2604.5,4.1258096]
[1730250954247,5.443438,2605.0,2604.6,0.2864467]
[1730250954407,5.443438,2605.0,2604.6,0.28645174]
[1730250954601,0.7608,2605.0,2604.7,3.8392]
[1730250954839,4.605515,2605.6,2604.8,4.62656]
[1730250955047,4.59891,2605.5,2604.9,4.12524773]
[1730250955340,0.7608,2605.5,2605.0,4.20188361]
[1730250955542,0.7608,2605.5,2605.1,0.28642773]
[1730250955731,3.83819,2605.4,2605.2,0.28642773]
[1730250956052,3.83819,2605.4,2605.0,1.28144322]
[1730250956212,3.83819,2605.4,2605.1,0.286672]
[1730250956406,3.83819,2605.4,2605.2,0.286672]
[1730250956717,0.7608,2605.5,2604.9,5.63640004]
[1730250956718,3.83832,2605.3,2604.9,0.45812864]
[1730250956923,4.682044,2605.3,2605.0,0.28668146]
[1730250957109,4.682044,2605.3,2605.1,0.2868656]
[1730250957302,4.682044,2605.3,2604.9,0.45898484]
[1730250957505,4.682044,2605.3,2605.0,0.28686561]
[1730250957739,4.682044,2605.3,2605.1,0.28686561]
[1730250957914,8.520494,2605.3,2604.8,0.45898829]
[1730250958123,0.8520494,2605.2,2604.9,0.28688289]
[1730250958319,0.8520494,2605.2,2605.0,0.28688289]
[1730250958537,0.8520494,2605.2,2604.9,0.99618551]
[1730250958711,4.6905294,2605.2,2605.0,0.28691506]
[1730250958912,4.6905294,2605.2,2604.9,0.99618551]
[1730250959114,3.83877,2605.0,2604.9,0.99618551]
[1730250960123,3.83877,2605.0,2604.8,0.80262257]
[1730250960350,3.83891,2604.9,2604.8,0.80262257]
[1730250961437,4.65181,2604.9,2604.8,0.80262257]
[1730250963750,4.70044639,2604.9,2604.8,0.80262257]
[1730250963937,5.55436903,2604.9,2604.8,0.80262257]
[1730250964738,3.83939,2604.6,2604.2,0.07678859]
[1730250964940,3.83939,2604.6,2604.0,4.59126]
[1730250965123,0.04848085,2604.5,2604.0,4.59126]
[1730250965324,0.04848085,2604.5,2604.0,5.46311422]
[1730250966365,3.88800085,2604.5,2604.0,5.46311422]
[1730250966564,3.88800085,2604.5,2604.0,1.62295422]
[1730250966565,7.67947,2604.4,2604.0,1.62295422]
[1730250966896,3.83998,2604.2,2603.7,0.7511]
[1730250967267,3.83998,2604.2,2603.8,3.84053]
[1730250967466,0.04849837,2604.1,2603.8,3.84053]
[1730250967664,0.04849837,2604.1,2603.7,1.03786523]
[1730250967997,0.04849837,2604.1,2603.7,4.59177]
[1730250968801,3.88860837,2604.1,2603.7,0.7511]
[1730250968974,0.82135721,2604.1,2603.7,0.7511]
[1730250969173,3.84033,2604.0,2603.7,0.7511]
[1730250969677,0.04849837,2603.9,2603.5,4.1276569]
[1730250970002,0.04849837,2603.9,2603.5,0.7511]
[1730250970681,3.84034,2604.0,2603.5,4.59194]
[1730250970879,0.04834938,2603.8,2603.5,4.59194]
[1730250971087,3.84034,2604.0,2603.5,2.06332669]
[1730250971290,0.04834938,2603.7,2603.5,0.7511]
[1730250971607,3.8405,2603.9,2603.5,0.7511]
[1730250971901,0.04832308,2603.8,2603.5,0.7511]
[1730250972289,3.84054,2603.8,2603.3,4.59237]
[1730250972479,3.88899774,2603.7,2603.3,1.03768599]
[1730250972684,0.04830774,2603.7,2603.3,4.59223]
[1730250973016,4.65298,2604.2,2603.6,3.4527812]
[1730250973163,3.84004,2604.2,2603.8,3.84053]
[1730250973504,3.8398,2604.3,2603.7,3.84061]
[1730250973680,3.8398,2604.3,2603.7,4.95404012]
[1730250973875,4.65265,2604.4,2603.7,4.95404012]
[1730250973876,4.65265,2604.4,2603.7,4.95403012]
[1730250974083,3.83894,2604.9,2604.2,3.83991]
[1730250974286,0.8129,2605.0,2604.4,8.0434212]
[1730250974480,3.83893,2604.9,2604.4,0.7511]
[1730250974680,3.83917,2604.8,2604.4,0.7511]
[1730250975179,3.83926,2604.7,2604.4,0.7511]
[1730250975368,3.83944,2604.6,2604.1,4.59109]
[1730250975693,3.83944,2604.6,2604.1,5.39547712]
[1730250976403,0.8129,2604.8,2603.9,4.59138]
[1730250976689,0.8129,2604.8,2603.9,4.59148]
[1730250976690,3.83972,2604.4,2603.9,4.59148]
[1730250976875,3.83954,2604.5,2604.0,3.84024]
[1730250977081,3.83974,2604.4,2603.9,1.03770419]
[1730250977292,0.8129,2604.3,2603.8,3.84044]
[1730250977465,3.84002,2604.2,2603.6,0.7511]
[1730250977789,3.84023,2604.1,2603.6,0.7511]
[1730250978119,3.84023,2604.1,2603.6,4.59192]
[1730250978303,3.84062,2603.8,2603.4,3.4527812]
[1730250978603,3.84062,2603.8,2603.3,4.59236]
[1730250978771,0.04839759,2603.7,2603.4,3.84112]
[1730250979201,3.84062,2603.8,2603.3,5.877587]
[1730250979502,3.84062,2603.8,2603.4,3.84111]
[1730250979802,0.04839759,2603.7,2603.4,7.68213]
[1730250980014,0.04839759,2603.7,2603.4,3.84102]